Cogmind - Beta 16 @@@ ROGUE MODE // 2025.11.06 @ 00:59:45 Player: souux Result: Destroyed by AW-BRJ(R) with Subdweller Shrapnel Launcher Performance ------------- Evolutions (0) 0 Regions Visited (2) 400 Robots Destroyed (30) 150 Value Destroyed (742) 742 Prototype IDs (0) 0 Alien Tech Used (0) 0 Bonus (0) 0 TOTAL SCORE: 1292 Bonus ------- None Cogmind --------- Core Integrity 0/250 Matter 235/300 Energy 69/100 System Corruption 2% Temperature Cool (0) Movement Walking (190) Ox1 Location -10/Subcaves Parts ------- > --- POWER (1) -------- (None) > --- PROPULSION (2) --- Aluminum Leg Aluminum Leg > --- UTILITY (2) ------ Heat Sink Large Storage Unit > --- WEAPON (2) ------- Beam Cannon Subdweller Machine Gun > --- INVENTORY (15) --- Large Matter Pod (150) Structural Scanner Improved Terrain Scanner ECM Suite EM Pulse Gun Beam Cannon Beam Cannon Peak State ------------ > --- POWER ------------ Light Nuclear Core > --- PROPULSION ------- Light Treads Light Treads > --- UTILITY ---------- Large Storage Unit Light Armor Plating > --- WEAPON ----------- Beam Cannon Beam Cannon > --- INVENTORY -------- Ion Engine Aluminum Leg Aluminum Leg Heat Sink Large Matter Pod Structural Scanner Improved Terrain Scanner Seismic Detector ECM Suite Light Armor Plating EM Pulse Gun Beam Cannon Beam Cannon Subdweller Machine Gun Subdweller Machine Gun [Rating: 10] Favorites ----------- Power Ion Engine Engine Ion Engine Power Core Light Nuclear Core Propulsion Light Treads Treads Light Treads Leg Aluminum Leg Wheel Wheel Utility Seismic Detector Device Seismic Detector Storage Large Storage Unit Protection Light Armor Plating Weapon EM Pulse Gun Energy Gun EM Pulse Gun Energy Cannon Beam Cannon Ballistic Gun Light Assault Rifle Ballistic Cannon Light Cannon Build | -11 -10 -10 ------- Run | Yrd Mat Sub Slots Evolved . | . . . Power . | . . . Propulsion . | . . . Utility . | . . . Weapon . | . . . Parts Attached 30 | 8 14 8 Power 5 | 1 3 1 Engine 4 | 1 2 1 Core 1 | . 1 . Reactor . | . . . Propulsion 6 | 2 2 2 Treads 2 | 2 . . Leg 2 | . . 2 Wheel 2 | . 2 . Hover . | . . . Flight . | . . . Utility 8 | 2 4 2 Device 4 | 1 2 1 Storage 2 | 1 1 . Processor . | . . . Hackware . | . . . Protection 2 | . 1 1 Artifact . | . . . Weapon 11 | 3 5 3 Energy Gun 3 | 2 1 . Energy Cannon 3 | . 2 1 Ballistic Gun 3 | 1 . 2 Ballistic Cannon 2 | . 2 . Launcher . | . . . Special Weapon . | . . . Impact Weapon . | . . . Slashing Weapon . | . . . Piercing Weapon . | . . . Special Melee Weapon . | . . . Unidentified Prototypes . | . . . Parts Lost 10 | . 1 9 Power 2 | . . 2 Propulsion 2 | . . 2 Utility 3 | . 1 2 Weapon 3 | . . 3 Highest Loss Streak 9 | . 1 9 To Critical Strikes . | . . . Average Backups 12 | 5 12 12 Power 1 | . 1 . Propulsion 3 | 3 3 1 Utility 3 | . 4 5 Weapon 3 | . 3 5 Tool/Special . | . . . Unused Backups 14 | . 8 6 Power 1 | . 1 . Propulsion 6 | . 6 . Utility 5 | . 1 4 Weapon 2 | . . 2 Tool/Special . | . . . Average Slot Usage (%) 99 | . 99 94 Engine 12 | . 12 2 Core 1 | . 1 8 Treads 24 | . 26 . Wheel 2 | . 2 21 Device 12 | . 12 11 Storage 14 | . 14 14 Protection 1 | . 1 1 Energy Gun 13 | . 14 . Energy Cannon 10 | . 9 21 Ballistic Cannon 3 | . 3 . Peak Build Rating 10 | 7 10 10 Average Rating 7 | 5 8 8 On Entrance 5 | . 7 10 Avg Prop Armor Cover (%) . | . . . Naked Turns . | . . . Heaviest Build 34 | 15 34 32 Greatest Support 40 | 40 40 20 Greatest Overweight (x) 3 | . 3 1 Average Overweight (x) . | . . 1 Largest Inventory Capacity 15 | 8 15 15 Average Capacity 13 | 7 13 15 Most Carried 15 | 8 15 15 Average Carried 12 | 5 12 12 Final Capacity 15 | 8 15 15 Final Carried 15 | 8 15 7 Class Distribution -------------------- 91% | Mutant 8% | Scavenger-Mutant Dominant Class ---------------- Mutant | -10/Materials Scavenger-Mutant | -10/Subcaves Resources | -11 -10 -10 ----------- Run | Yrd Mat Sub Matter Collected 869 | 304 565 . Remotely . | . . . Salvage Created 1068 | 127 869 72 Parts 55 | 6 47 2 Haulers Intercepted 2 | . 2 . Recyclers Shooed 1 | . 1 . Parts Field Recycled . | . . . Retrieved Matter . | . . . Parts Self-Destructed 6 | . . 6 Prevented . | . . . Parts Restored . | . . . Kills | -11 -10 -10 ------- Run | Yrd Mat Sub Combat Hostiles Destroyed 20 | . 18 2 Guns 14 | . 12 2 Cannons 5 | . 5 . AOE 1 | . 1 . Classes Destroyed 9 | 2 7 . Worker 2 | . 2 . Tunneler 2 | 2 . . Hauler 2 | . 2 . Recycler 1 | 1 . . Operator 1 | . 1 . Watcher 2 | . 2 . Swarmer 3 | . 3 . Grunt 13 | . 13 . Subdweller 4 | . 2 2 Best Kill Streak 6 | 1 6 2 Combat Bots Only 6 | . 6 2 Max Kills in Single Turn 2 | 1 2 2 Gunslinging 1 | . . 1 Exploded 1 | . 1 . Melee . | . . . Uniques/NPCs Destroyed . | . . . Combat | -11 -10 -10 -------- Run | Yrd Mat Sub Hostile Shots Fired 107 | . 69 38 Missed 30 | . 21 9 Hits 77 | . 48 29 Projectile 77 | . 48 29 AOE 6 | . . 6 Critical Strikes 2 | . 2 . Damage Taken 1401 | . 590 811 Core 269 | . 120 149 Absorbed by Shields . | . . . Core Remaining (%) 100 | 100 . . Volleys Fired 104 | 18 70 16 Largest 2 | 2 2 2 Hottest 120 | 60 120 120 Shots Fired 174 | 21 127 26 Gun 112 | 21 80 11 Cannon 62 | . 47 15 Launcher . | . . . Special . | . . . Kinetic 39 | 14 14 11 Thermal 48 | . 33 15 Explosive . | . . . Electromagnetic 87 | 7 80 . Robot Hit Streak 11 | 4 6 11 Robot Miss Streak 5 | 2 5 3 Penetration Max . | . . . Secondary Targets 4 | . 3 1 Max Gunslinging Chain 1 | . 1 1 Shots Hit Robots 110 | 14 76 20 Core Hits 46 | 6 36 4 Critical Kills . | . . . Critical Parts Destroyed . | . . . Critical Strikes 1 | . 1 . Corrupt 1 | . 1 . Melee Attacks . | . . . Impact . | . . . Slashing . | . . . Piercing . | . . . Sneak Attacks . | . . . Combat Hostiles . | . . . Follow-up Attacks . | . . . Damage Inflicted 1984 | 161 1481 342 Guns 974 | 141 705 128 Cannons 743 | . 529 214 Explosions 255 | 20 235 . Melee . | . . . Ramming 12 | . 12 . Kinetic 379 | 89 162 128 Thermal 836 | 20 602 214 Explosive . | . . . Electromagnetic 757 | 52 705 . Impact . | . . . Slashing . | . . . Piercing . | . . . Highest Corruption 2 | . 2 2 Average Corruption 2 | . 2 2 Corruption Purged . | . . . Corruption Blocked . | . . . Effects 26 | . 23 3 Message Errors 5 | . 5 . Matter Fused 9 | . 8 1 Heat Flow Errors 4 | . 2 2 Energy Discharges 2 | . 2 . Data Loss (minor) 3 | . 3 . Data Loss (major) 1 | . 1 . Misfires 1 | . 1 . Alerts 1 | . 1 . Overload Shots . | . . . Overflow Damage 18 | . 18 . Projectiles 18 | . 18 . Explosions . | . . . Melee . | . . . Knockbacks 1 | . 1 . Impact . | . . . Kinetic 1 | . 1 . Secondary . | . . . Self-Inflicted Damage . | . . . Shots . | . . . Rammed 2 | . 2 . Targets Rammed 2 | . 2 . Kicked . | . . . Crushed . | . . . Highest Temperature 531 | 40 531 205 Average Temperature 113 | 19 120 51 Received Heat Transfer 435 | . 279 156 Effects 4 | . 4 . Shutdowns 1 | . 1 . Energy Bleed 1 | . 1 . Interference 2 | . 2 . Siege Activations . | . . . Martial Activations . | . . . Shielding Activations . | . . . Robots Disrupted . | . . . Combat Hostiles . | . . . Robots Corrupted . | . . . Combat Hostiles . | . . . Parts Fried 3 | . 3 . Impact Corruptions . | . . . Robots Melted . | . . . Combat Hostiles . | . . . Parts Melted 2 | . 2 . Heat Transferred 1621 | 50 1127 444 Parts Sabotaged . | . . . Parts Stolen . | . . . Parts Stripped . | . . . Power Chain Reactions 4 | 1 3 . Alert | -11 -10 -10 ------- Run | Yrd Mat Sub Maximum Alert Level . | . . . Low Security (%) 100 | 100 100 . Level 1 . | . . . Level 2 . | . . . Level 3 . | . . . Level 4 . | . . . Level 5 . | . . . High Security . | . . . Max Security . | . . . Peak Influence 126 | 5 126 . Initial . | . . . Average 31 | 1 34 . Influence Increases 501 | 15 486 . Destroy 0b10 Robot/C 320 | . 320 . Destroy 0b10 Robot/NC 50 | 15 35 . Destroy Leader 78 | . 78 . Successful Hack 29 | . 29 . Disable Machine 15 | . 15 . Destroy Structure 9 | . 9 . Influence Decreases 501 | 15 450 36 Entered New Map 18 | . . 18 Time Decay 473 | 15 440 18 Lost Part 10 | . 10 . Squads Dispatched 4 | . 4 . Investigation 2 | . 2 . Extermination . | . . . Reinforcement 2 | . 2 . Assault . | . . . Garrison . | . . . Intercept . | . . . Searches Triggered . | . . . Construction Impeded . | . . . Haulers Reinforced . | . . . Active Scanning Responses . | . . . Cargo Convoy Interrupts . | . . . Stealth | -11 -10 -10 --------- Run | Yrd Mat Sub Distress Signals . | . . . Communications Jammed . | . . . Distress Signals . | . . . Times Spotted 33 | . 30 3 Peak Tracking Total 3 | . 3 3 Tactical Retreats . | . . . Traps | -11 -10 -10 ------- Run | Yrd Mat Sub Traps Triggered 3 | . 3 . Indirectly . | . . . Trap Hack Attempts . | . . . Triggered . | . . . Disarmed . | . . . Reprogrammed . | . . . Reused . | . . . Traps Extracted . | . . . Installed . | . . . Triggered . | . . . Machines | -11 -10 -10 ---------- Run | Yrd Mat Sub Machines Disabled 1 | . 1 . Max in Single Turn 1 | . 1 . Machines Repaired . | . . . Machines Dismantled . | . . . Machines Sabotaged . | . . . Overloaded Fab Kills . | . . . Hacking | -11 -10 -10 --------- Run | Yrd Mat Sub Machines Accessed 6 | . 6 . Terminals 6 | . 6 . Fabricators . | . . . Repair Stations . | . . . Recycling Units . | . . . Scanalyzers . | . . . Garrison Access . | . . . Total Hacks 21 | . 21 . Successful 13 | . 13 . Failed 8 | . 8 . Catastrophic 1 | . 1 . Database Lockouts . | . . . Manual 15 | . 15 . Terminals 21 | . 21 . Fabricators . | . . . Repair Stations . | . . . Recycling Units . | . . . Scanalyzers . | . . . Garrison Access . | . . . Terminal Hacks 3 | . 3 . Part Schematic 1 | . 1 . Hauler Manifests 2 | . 2 . Fabricator Hacks . | . . . Repair Station Hacks . | . . . Recycling Unit Hacks . | . . . Scanalyzer . | . . . Garrison Access Hacks . | . . . Unauthorized Hacks 10 | . 10 . Terminals 10 | . 10 . Botnet 5 | . 5 . Skim 5 | . 5 . Fabricators . | . . . Repair Stations . | . . . Recycling Units . | . . . Scanalyzers . | . . . Garrison Access . | . . . Data Cores Recovered . | . . . Used . | . . . Hacking Detections 6 | . 6 . Full Trace Events . | . . . Feedback Events . | . . . Feedback Blocked . | . . . Robot Schematics Acquired . | . . . Robots Built . | . . . Authchips . | . . . Time . | . . . Total Robot Build Rating . | . . . Part Schematics Acquired 1 | . 1 . Parts Built . | . . . Authchips . | . . . Time . | . . . Total Part Build Rating . | . . . Part Studies Acquired . | . . . Parts Repaired . | . . . Time . | . . . Parts Recycled . | . . . Recycled Matter . | . . . Retrieved Matter . | . . . Retrieved Components . | . . . Parts Scanalyzed . | . . . Part Schematics Acquired . | . . . Parts Damaged . | . . . Bothacking | -11 -10 -10 ------------ Run | Yrd Mat Sub Used RIF Installer . | . . . Robots Hacked . | . . . Non-combat . | . . . Combat . | . . . Robot Hacks Applied . | . . . Relay Couplers Released . | . . . Fabnet Peak Effective % . | . . . Robots Rewired . | . . . Allies Hacked . | . . . Hacks Repelled . | . . . Allies | -11 -10 -10 -------- Run | Yrd Mat Sub Total Allies . | . . . Largest Group . | . . . Highest-Rated Group . | . . . Highest-Rated Ally . | . . . Total Orders . | . . . Ally Attacks . | . . . Total Damage . | . . . Kills . | . . . Allies Corrupted . | . . . Allies Melted . | . . . Intel | -11 -10 -10 ------- Run | Yrd Mat Sub Active Infowar (turns) 1993 | 108 1829 56 Seismic 1993 | 108 1829 56 Robot Analysis Total . | . . . Derelict Logs Recovered 1 | . . 1 Drone Launches . | . . . Drone Recoveries . | . . . Exploration | -11 -10 -10 ------------- Run | Yrd Mat Sub Turns Passed 2387 | 194 2087 106 Spaces Moved 1279 | 91 1129 59 Core 11 | 11 . . Treads 1059 | 80 979 . Legs . | . . . Wheels 209 | . 150 59 Hover . | . . . Flight . | . . . Fastest Speed 50 | 50 95 95 Average Speed 148 | 146 151 95 Slowest Speed 240 | 160 240 95 Overloaded Moves . | . . . Propulsion Burnouts . | . . . Robots Hopped . | . . . Potential Cave-ins . | . . . Cave-ins Triggered . | . . . Exploration Rate (%) 37 | 5 99 9 Regions Visited 2 Branch Regions 1 Pre-discovered Areas 2 | . 2 . Known Exits Taken 1 | . 1 . Unknown Exits Taken 1 | 1 . . Scrap Searched . | . . . Spaces Dug . | . . . Terrain Destroyed 8 | . 8 . Melee . | . . . Projectile . | . . . AOE 8 | . 8 . Terrain Rammed . | . . . Walls Destroyed . | . . . Machines Disabled . | . . . Actions | -11 -10 -10 --------- Run | Yrd Mat Sub Total 1599 | 134 1382 83 Wait 113 | . 113 . Move 1277 | 90 1128 59 Hop . | . . . Pick Up 43 | 16 27 . Fast Attach 3 | . 3 . Attach 21 | 7 6 8 Detach . | . . . Swap 14 | 2 12 . Drop 22 | 1 21 . Fire 104 | 18 70 16 Melee . | . . . Ram . | . . . Kick . | . . . Crush 2 | . 2 . Escape Stasis . | . . . Rewire . | . . . Trap . | . . . Miscellaneous . | . . . Route ------- -11/Scrapyard -10/Materials (discovered 6 exits: *Mat x3 / [*Min x2] / *Sub) -10/Subcaves (discovered 3 exits: Mat x2 / Rec) History --------- Turn | Location | Event 72 | -11/Scrapyard | Discovered new exit (range 12) 195 | -11/Scrapyard | Entered Materials 294 | -10/Materials | Discovered new exit (range 12) 308 | -10/Materials | Build established: Mutant 577 | -10/Materials | Discovered new exit (range 16) 1000 | -10/Materials | Discovered new exit (range 16) 1142 | -10/Materials | Discovered new exit (range 10) 1195 | -10/Materials | Derelicts attacked the area 1583 | -10/Materials | Learned Storage security intel 1614 | -10/Materials | Identified exit to Materials 1637 | -10/Materials | Identified exit to Subcaves 1705 | -10/Materials | Learned 4 Recycling zone layouts 1750 | -10/Materials | Learned location of 2 exits from Subcaves 2282 | -10/Materials | Entered Subcaves 2283 | -10/Subcaves | Approached by a straggling Scientist 2283 | -10/Subcaves | Identified exit to Materials 2284 | -10/Subcaves | Identified exit to Recycling 2287 | -10/Subcaves | Learned 2 Materials zone layouts 2339 | -10/Subcaves | Core integrity fell below 50% 2340 | -10/Subcaves | Ambushed by Subdweller buried in earth 2376 | -10/Subcaves | Core integrity fell below 20% 2388 | -10/Subcaves | Destroyed by AW-BRJ(R) with Subdweller Shrapnel Launcher Last Messages --------------- 02332_ System corrupted: Heat flow error (+162). 03-2V0(c): "I think it's somewhere south of here" 02338_ Seismic Detector destroyed. 02340_ Lgt. Nuclear Core destroyed. [Achievement: Do Not Disturb] 02341_ A8-JKS(R): "NAT20!" 02344_ 03-2V0(c) destroyed. 02349_ Lgt. Armor Plating destroyed. 02351_ Wheel destroyed. 02353_ Beam Cannon destroyed. 02361_ Wheel destroyed. 02363_ Ion Engine destroyed. 02367_ Beam Cannon destroyed. 02376_ System corrupted: Heat flow error (+240). 02376_ A8-JKS(R) destroyed. 02376_ Switching to secondary target: 2X-CL2(R). 02376_ 2X-CL2(R) destroyed. 02378_ Subatomizers dissect the Sub. Monowheel. 02383_ Sub. Machine Gun destroyed. Map ----- +----------------------------------------------------+ | ???????????????????????????????????????????? | | ???????????????????????????????????????????? | | ???????????????????????????????????????????? | | ???????????????????????????????????????????? | | ???????????????????????????????????????????? | | ???????????????????????????????????????????? | | ???????????????????????????????????????????? | | ???????????????????????????????????????????? | | ???????????????????????????????????????????? | | ???????????????????????????????????????????? | | ???????????????????????????????????????????? | | ???????????????????????????????????????????? | | ???????????????????????????????????????????? | | ????????????????"" ????????????????????????? | | ??????????????"" #?????????????????????? | | ??????????????" #????????????????????? | | ?????????????" #???????????????????? | | ????????????? " #####??????????????? | | ?????????????# ??????????????? | | ?????????????#" ; " #??????????????? | | ?????????????"" ###????????????? | | ???????????""" #????????????? | | ??????????? R #????????????? | | ?????????? ##???????????? | | ?????????? #???????????? | | ?????????? @ #???????????? | | ??????????????#=* ; ##???????????? | | ??????????????#%& ## [ #???????????? | | ???????????????????# #???????????? | | ???????????????????## ##???????????? | | ????????????????????# ; ; #????????????? | | ????????????????????##; ;##????????????? | | ?????????????????????### ##?????????????? | | ??????????????????????## #?????????????? | | ??????????????????##### #?????????????? | | ?????????????????## ##?????????????? | | ?????????????????# #??????????????? | | ?????????????????# #??????????????? | | ?????????????????## #??????????????? | | ??????????????????# #??????????????? | | ??????????????????# ##??????????????? | | ?????????????????## #???????????????? | | ?????????????????# #???????????????? | | ?????????????????# #???????????????? | | ?????????????????## #???????????????? | | ??????????????????# #???????????????? | | ??????????????????# #???????????????? | | ?????????????????## ##???????????????? | | ?????????????????# ##???????????????? | | ?????????????????# ### ##??????????????? | +----------------------------------------------------+ Best States ------------- Heat Dissipation 35 Energy Generation 15 Energy Capacity 250 Matter Stores 300 Matter Capacity 300 Sight Range 16 Terrain Scan Density 10 Armor Coverage 150 Evasion (%) 50 Recoil Reduction 2 Item Schematics ----------------- Huge Storage Unit | -10/Materials | Hacked Robot Schematics ------------------ None Fabricated ------------ Nothing Repaired ---------- Nothing Studied --------- None Alien Tech Used ----------------- None Achievements -------------- Do Not Disturb Challenges ------------ None Game ------ Seed BladeThrusterProcessor Manual? 0 Play Time 00:25:00 Cumulative 73.8 hours Start 2025.11.06 @ 00:35:29 End 2025.11.06 @ 00:59:45 Sessions 1 Manual Loads 0 Difficulty Rogue Special Mode None Game No. 64 Rogue 64 Adventurer 0 Explorer 0 Win Type - Total 0 Types 0/0/0/0/0/0/0/0/0/0 Lore% 26 Gallery% 39 Achievement% 29 Wizard Run 0 Options --------- Layout 2 ASCII 0 Keyboard 0 Movement Mouse Keybinds 0 Fullscreen 2 Font 24/Terminus Map View 50x44 Zoom Use 0% Tactical HUD 1 Map Filters NONE Filters NONE Steam 1 RUN: 43897071-72f2-48b9-8693-60992402d90f